bitfinex/quotes_BTCUSD_20230113
["timestamp","ask_amount","ask_price","bid_price","bid_amount"]
[1673591640517,0.04877239,18829.0,18828.0,4.14698948]
[1673591642187,0.04877239,18829.0,18828.0,4.1457398]
[1673591643396,0.04877239,18829.0,18828.0,3.66911718]
[1673591644370,0.04877239,18829.0,18828.0,3.66905682]
[1673591644612,0.04877239,18829.0,18828.0,3.66305682]
[1673591644841,0.15277239,18829.0,18828.0,3.67105682]
[1673591646958,0.15277239,18829.0,18828.0,4.14767944]
[1673591648414,0.15277239,18829.0,18828.0,4.24823792]
[1673591648644,0.15359035,18829.0,18828.0,3.69917631]
[1673591648881,0.15277239,18829.0,18828.0,3.69917631]
[1673591650310,0.15359035,18829.0,18828.0,3.67195425]
[1673591650545,0.15277239,18829.0,18828.0,3.67195425]
[1673591650786,0.15277239,18829.0,18828.0,3.80365801]
[1673591651020,0.15277239,18829.0,18828.0,3.40640425]
[1673591654325,0.15359035,18829.0,18828.0,3.80361686]
[1673591654554,0.15277239,18829.0,18828.0,3.80361686]
[1673591655022,0.15277239,18829.0,18828.0,3.80367933]
[1673591655274,0.15277239,18829.0,18828.0,3.40646672]
[1673591655754,0.15277239,18829.0,18828.0,3.80367192]
[1673591659126,0.15277239,18829.0,18828.0,3.66367192]
[1673591659911,0.15277279,18829.0,18828.0,3.66367192]
[1673591660549,0.15277279,18829.0,18828.0,3.66360945]
[1673591661706,0.15277279,18829.0,18828.0,3.06441545]
[1673591661959,0.15277279,18829.0,18828.0,3.66360945]
[1673591662207,0.15277279,18829.0,18828.0,3.42119325]
[1673591662462,0.15277279,18829.0,18828.0,3.68675325]
[1673591663707,0.15277279,18829.0,18828.0,3.42125572]
[1673591663947,0.15277279,18829.0,18828.0,3.42119325]
[1673591667163,0.15277279,18829.0,18828.0,3.68675325]
[1673591667665,0.15277279,18829.0,18828.0,3.28954805]
[1673591667910,0.15277279,18829.0,18828.0,2.63807892]
[1673591668156,0.15277279,18829.0,18828.0,3.1610823]
[1673591671393,0.15267384,18829.0,18828.0,3.1610823]
[1673591673450,0.15267384,18829.0,18828.0,2.8955223]
[1673591676646,0.15267384,18829.0,18828.0,2.75510348]
[1673591676900,0.15267384,18829.0,18828.0,2.84914154]
[1673591677147,0.15267384,18829.0,18828.0,3.55357793]
[1673591677639,0.15267384,18829.0,18828.0,3.07695531]
[1673591677888,0.15267384,18829.0,18828.0,3.55357793]
[1673591678434,0.15267384,18829.0,18828.0,3.07695531]
[1673591679155,0.15267384,18829.0,18828.0,3.55357793]
[1673591680165,0.1526709,18829.0,18828.0,3.55357793]
[1673591681338,0.1526709,18829.0,18828.0,3.07695531]
[1673591681871,0.1526709,18829.0,18828.0,3.55357793]
[1673591685429,0.1526709,18829.0,18828.0,3.07695531]
[1673591686885,0.1526709,18829.0,18828.0,3.55357793]
[1673591687062,0.1526709,18829.0,18828.0,3.07695531]
[1673591687517,0.1526709,18829.0,18828.0,3.55357793]
[1673591687734,0.1526709,18829.0,18828.0,3.07695531]
[1673591687950,0.1526709,18829.0,18828.0,3.34250531]
[1673591688162,0.1526709,18829.0,18828.0,3.81912793]
[1673591688338,0.15348886,18829.0,18828.0,3.34250531]
[1673591688562,0.1526709,18829.0,18828.0,3.34250531]
[1673591688802,0.1526709,18829.0,18828.0,3.81912793]
[1673591689023,0.1526709,18829.0,18828.0,3.55357793]
[1673591689273,0.1526709,18829.0,18828.0,3.95912793]
[1673591690791,0.1526709,18829.0,18828.0,3.48250531]
[1673591691039,0.1526709,18829.0,18828.0,3.95912793]
[1673591691221,0.1526709,18829.0,18828.0,3.48250531]
[1673591691464,0.15255766,18829.0,18828.0,3.48250531]
[1673591692544,0.15255766,18829.0,18828.0,3.95912793]
[1673591692793,0.15255766,18829.0,18828.0,3.48250531]
[1673591693050,0.15255766,18829.0,18828.0,3.48256778]
[1673591693260,0.15255766,18829.0,18828.0,3.9591904]
[1673591693966,0.15255766,18829.0,18828.0,3.48256778]
[1673591694553,0.15255766,18829.0,18828.0,2.77813139]
[1673591694802,0.15255766,18829.0,18828.0,3.80624394]
[1673591695041,0.15255766,18829.0,18828.0,3.25475401]
[1673591695297,0.15255766,18829.0,18828.0,3.82279087]
[1673591698786,0.14755766,18829.0,18828.0,3.25475401]
[1673591699007,0.14755766,18829.0,18828.0,3.91458517]
[1673591699516,0.14755766,18829.0,18828.0,3.25475401]
[1673591699765,0.14755766,18829.0,18828.0,3.80763715]
[1673591700515,0.14755703,18829.0,18828.0,3.80763715]
[1673591701773,0.14212079,18829.0,18828.0,3.25475401]
[1673591702033,0.14212079,18829.0,18828.0,3.96132825]
[1673591703064,0.14212079,18829.0,18828.0,3.96053025]
[1673591708519,0.14212079,18829.0,18828.0,3.96046819]
[1673591710967,0.14212079,18829.0,18828.0,3.96040572]
[1673591713139,0.14212079,18829.0,18828.0,3.4837831]
[1673591713386,0.14212079,18829.0,18828.0,3.96040572]
[1673591713628,0.14212079,18829.0,18828.0,3.4837831]
[1673591713860,0.14212079,18829.0,18828.0,3.51186522]
[1673591714110,0.14212079,18829.0,18828.0,3.98848784]
[1673591714596,0.14212079,18829.0,18828.0,3.98860669]
[1673591715833,0.14212079,18829.0,18828.0,3.65847269]
[1673591720294,0.14212079,18829.0,18828.0,3.98860669]
[1673591720798,0.14212207,18829.0,18828.0,3.98860669]
[1673591723816,0.14212207,18829.0,18828.0,3.72305669]
[1673591724065,0.14212207,18829.0,18828.0,3.24643407]
[1673591724588,0.14212207,18829.0,18828.0,3.24631522]
[1673591724825,0.14294003,18829.0,18828.0,3.24631522]
[1673591725099,0.14212207,18829.0,18828.0,3.24631522]
[1673591728256,0.14212207,18829.0,18828.0,3.24698495]
[1673591732091,0.1420078,18829.0,18828.0,3.24698495]
[1673591735433,0.1420078,18829.0,18828.0,3.64377133]
[1673591735929,0.43233099,18829.0,18828.0,0.10905848]
[1673591735934,0.43233099,18829.0,18828.0,0.26789037]
[1673591736182,0.68129168,18829.0,18828.0,0.10905848]
[1673591736445,0.84329898,18829.0,18828.0,0.10905848]
[1673591736694,1.0207815,18829.0,18828.0,0.13904259]
[1673591736958,0.90432801,18829.0,18828.0,0.13904259]
[1673591737748,1.06360964,18829.0,18828.0,0.13904259]
[1673591737992,0.90432801,18829.0,18828.0,0.13904259]
[1673591738254,1.06360964,18829.0,18828.0,0.13904259]
[1673591738730,0.95960964,18829.0,18828.0,0.13104259]
[1673591738969,0.95960964,18829.0,18828.0,0.13204259]
[1673591738970,0.93532801,18829.0,18828.0,0.13204259]
[1673591740442,0.80032801,18829.0,18828.0,0.13104259]
[1673591741166,0.96730809,18829.0,18828.0,0.13204259]
[1673591741409,0.87959068,18829.0,18828.0,0.13104259]
[1673591741655,1.01559068,18829.0,18828.0,0.13204259]
[1673591741905,0.87959068,18829.0,18828.0,0.13104259]
[1673591742188,1.01559068,18829.0,18828.0,0.13204259]
[1673591742444,1.09850666,18829.0,18828.0,0.13204259]
[1673591742685,1.01559068,18829.0,18828.0,0.13204259]
[1673591742934,0.94575425,18829.0,18828.0,0.13204259]
[1673591743176,0.72030905,18829.0,18828.0,0.13104259]
[1673591743462,1.01559068,18829.0,18828.0,0.00100001]
[1673591743696,1.14345501,18829.0,18828.0,0.00100001]
[1673591744922,0.98417338,18829.0,18828.0,0.00100001]
[1673591745928,2.12755501,18829.0,18828.0,0.00100001]
[1673591747164,1.96827338,18829.0,18828.0,0.00100001]
[1673591747659,1.84040905,18829.0,18828.0,0.00100001]
[1673591748689,1.99969068,18829.0,18828.0,0.00100001]
[1673591748941,1.84040905,18829.0,18828.0,0.00100001]
[1673591750410,1.99969068,18829.0,18828.0,0.00100001]
[1673591750659,1.15449068,18829.0,18828.0,0.00100001]
[1673591750947,0.00200001,18827.0,18824.0,0.00116741]
[1673591751197,0.1,18825.0,18824.0,0.00116741]
[1673591751445,0.61028894,18825.0,18824.0,0.00116741]
[1673591751689,0.46101289,18825.0,18824.0,0.00019]
[1673591751939,0.44302889,18825.0,18824.0,0.00019]
[1673591752189,0.681984,18825.0,18824.0,0.00019]
[1673591752714,0.681984,18825.0,18822.0,0.00394989]
[1673591752976,0.141,18823.0,18822.0,0.00394989]
[1673591753226,0.440984,18823.0,18822.0,0.00394989]
[1673591753975,0.141,18823.0,18822.0,0.00394989]
[1673591754213,0.229,18823.0,18822.0,0.00394989]
[1673591754958,0.22981796,18823.0,18822.0,0.00394989]
[1673591756170,0.62980196,18823.0,18822.0,0.00394989]
[1673591756671,0.72468915,18823.0,18822.0,0.00394989]
[1673591756916,0.62980196,18823.0,18822.0,0.00394989]
[1673591757422,0.72921081,18823.0,18822.0,0.00394989]
[1673591758691,0.64121081,18823.0,18822.0,0.00394989]
[1673591758934,0.77621081,18823.0,18822.0,0.00394989]
[1673591759409,0.77121081,18823.0,18822.0,0.00394989]
[1673591760457,0.77121081,18823.0,18822.0,0.60314389]
[1673591761441,0.77251291,18823.0,18822.0,0.60314389]
[1673591763215,0.37671095,18823.0,18822.0,0.60314389]
[1673591763731,0.51349995,18823.0,18822.0,0.60314389]
[1673591764236,0.37671095,18823.0,18822.0,0.60314389]
[1673591764750,0.23571095,18823.0,18822.0,0.60314389]
[1673591766954,0.37681095,18823.0,18822.0,0.60314389]
[1673591767203,0.51359995,18823.0,18822.0,0.60314389]
[1673591768465,0.37681095,18823.0,18822.0,0.60314389]
[1673591769701,0.51359995,18823.0,18822.0,0.60314389]
[1673591770212,0.37681095,18823.0,18822.0,0.60314389]
[1673591770714,0.37681095,18823.0,18822.0,0.69960817]
[1673591771210,0.37681095,18823.0,18822.0,0.70152238]
[1673591771471,0.37681095,18823.0,18822.0,0.69960817]
[1673591772203,0.51359995,18823.0,18822.0,0.69960817]
[1673591772445,0.37859995,18823.0,18822.0,0.69960817]
[1673591772691,0.37781095,18823.0,18822.0,0.69960817]
[1673591772941,0.51459995,18823.0,18822.0,0.69960817]
[1673591773457,0.37781095,18823.0,18822.0,0.69960817]
[1673591773718,0.24181095,18823.0,18822.0,0.69960817]
[1673591773980,0.51459995,18823.0,18822.0,0.69960817]
[1673591774225,0.24181095,18823.0,18822.0,0.69960817]
[1673591774471,0.37781095,18823.0,18822.0,0.69960817]
[1673591774718,0.37781095,18823.0,18822.0,0.69739567]
[1673591776632,0.23671095,18823.0,18822.0,0.69739567]
[1673591777656,0.23671095,18823.0,18822.0,0.69518317]
[1673591777907,0.1373021,18823.0,18822.0,0.69518317]
[1673591780221,0.1373021,18823.0,18822.0,0.69709738]
[1673591780473,0.1373021,18823.0,18822.0,0.69297067]
[1673591781740,0.13729643,18823.0,18822.0,0.69297067]
[1673591783968,0.13729643,18823.0,18822.0,0.69075817]
[1673591789217,0.77622817,18823.0,18822.0,0.69075817]
[1673591789494,0.91301717,18823.0,18822.0,0.69075817]
[1673591790171,0.77622817,18823.0,18822.0,0.69075817]
[1673591790415,0.61830247,18823.0,18822.0,0.69075817]
[1673591790670,0.75509147,18823.0,18822.0,0.69075817]
[1673591791909,0.75509147,18823.0,18822.0,0.69085387]
[1673591792159,0.38040841,18823.0,18822.0,0.69075817]
[1673591792700,0.61830247,18823.0,18822.0,0.69075817]
[1673591792943,0.38040841,18823.0,18822.0,0.69075817]
[1673591793189,0.51719741,18823.0,18822.0,0.69075817]
[1673591793447,0.75509147,18823.0,18822.0,0.69075817]
[1673591793687,0.38040841,18823.0,18822.0,0.69075817]
[1673591793935,0.51719741,18823.0,18822.0,0.69075817]
[1673591794426,0.38040841,18823.0,18822.0,0.69075817]
[1673591794669,0.51719741,18823.0,18822.0,0.69075817]
[1673591795227,0.38040841,18823.0,18822.0,0.69075817]
[1673591795734,0.51719741,18823.0,18822.0,0.69075817]
[1673591797834,0.38040841,18823.0,18822.0,0.69075817]
[1673591798580,0.51719741,18823.0,18822.0,0.69075817]
[1673591799639,0.38040841,18823.0,18822.0,0.69075817]
[1673591799883,0.51719741,18823.0,18822.0,0.69075817]
[1673591800173,0.38040841,18823.0,18822.0,0.69075817]
[1673591800400,0.51719741,18823.0,18822.0,0.69075817]
[1673591800633,0.38040841,18823.0,18822.0,0.69075817]
[1673591800873,0.51719741,18823.0,18822.0,0.69075817]
[1673591801129,0.38040841,18823.0,18822.0,0.69075817]
[1673591801624,0.38040841,18823.0,18822.0,0.69085387]
[1673591801866,0.2211424,18823.0,18822.0,0.69075817]
[1673591802111,0.51719778,18823.0,18822.0,0.69075817]
[1673591802598,0.61830284,18823.0,18822.0,0.69075817]
[1673591802847,0.75509184,18823.0,18822.0,0.69075817]
[1673591804580,0.61830284,18823.0,18822.0,0.69075817]
[1673591804820,0.75509184,18823.0,18822.0,0.69075817]
[1673591805569,0.61830284,18823.0,18822.0,0.69075817]
[1673591806123,0.75509184,18823.0,18822.0,0.69075817]
[1673591807113,0.29650196,18823.0,18822.0,1.87099087]
[1673591807362,0.13723558,18823.0,18822.0,2.67628051]
[1673591807612,0.13723558,18823.0,18822.0,2.05485744]
[1673591807865,0.13723558,18823.0,18822.0,2.32078714]
[1673591808125,0.13723558,18823.0,18822.0,1.92351133]
[1673591808373,0.0012968,18823.0,18822.0,2.94620969]
[1673591808618,0.0012968,18823.0,18822.0,2.27550547]
[1673591808870,0.1372968,18823.0,18822.0,2.27550547]
[1673591809112,0.1372968,18823.0,18822.0,2.59311239]
[1673591809348,0.1372968,18823.0,18822.0,2.73411239]
[1673591809595,0.1372968,18823.0,18822.0,2.73411495]
[1673591809837,0.1372968,18823.0,18822.0,2.46850466]
[1673591810081,0.0012968,18823.0,18822.0,2.46850557]
[1673591810595,0.0012968,18823.0,18822.0,2.47050557]
[1673591810842,0.0962968,18823.0,18822.0,2.62562039]
[1673591811090,0.0962968,18823.0,18822.0,1.75723131]
[1673591811857,0.0962968,18823.0,18822.0,2.08744931]
[1673591812592,0.0962968,18823.0,18822.0,2.38744931]
[1673591814317,0.0962968,18823.0,18822.0,2.05723131]
[1673591814563,0.0962968,18823.0,18822.0,1.89844675]
[1673591816512,0.0962968,18823.0,18822.0,1.89862992]
[1673591817281,0.0962968,18823.0,18822.0,2.05741448]
[1673591817521,0.0962968,18823.0,18822.0,2.05723131]
[1673591818774,0.0962968,18823.0,18822.0,2.62559485]
[1673591819275,0.0962968,18823.0,18822.0,2.29537685]
[1673591819511,0.0962968,18823.0,18822.0,2.05723131]
[1673591821655,0.0962968,18823.0,18822.0,2.03001052]
[1673591822142,0.09629758,18823.0,18822.0,2.03001052]
[1673591825461,0.09629758,18823.0,18822.0,2.36022852]
[1673591825706,0.09629758,18823.0,18822.0,2.03001052]
[1673591827558,0.09629758,18823.0,18822.0,2.36022852]
[1673591828748,0.09629758,18823.0,18822.0,2.59837406]
[1673591828992,0.09629758,18823.0,18822.0,2.03001052]
[1673591830971,0.09629758,18823.0,18822.0,2.36022852]
[1673591831211,0.09629758,18823.0,18822.0,2.03001052]
[1673591832676,0.09629758,18823.0,18822.0,1.87122596]
[1673591835568,0.09629758,18823.0,18822.0,2.03001052]
[1673591837065,0.09629758,18823.0,18822.0,2.36022852]
[1673591837336,0.09629758,18823.0,18822.0,2.03001052]
[1673591838065,0.09629758,18823.0,18822.0,2.59837406]
[1673591838536,0.09629758,18823.0,18822.0,2.26815606]
[1673591839039,0.09629758,18823.0,18822.0,2.59837406]
[1673591839817,0.09629758,18823.0,18822.0,2.26815606]
[1673591840034,0.09629758,18823.0,18822.0,2.59837406]
[1673591840556,0.09629758,18823.0,18822.0,2.26815606]
[1673591841020,0.09629758,18823.0,18822.0,2.28324048]
[1673591841535,0.09629758,18823.0,18822.0,2.44208908]
[1673591842066,0.09629758,18823.0,18822.0,2.74060339]
[1673591842562,0.09630053,18823.0,18822.0,2.39012898]
[1673591843118,0.09630053,18823.0,18822.0,2.3940377]
[1673591843378,0.09630053,18823.0,18822.0,2.98833159]
[1673591843633,0.09630053,18823.0,18822.0,3.305806]
[1673591844131,0.09630053,18823.0,18822.0,2.82585822]
[1673591844578,0.09630053,18823.0,18822.0,2.82591252]
[1673591844817,0.09622606,18823.0,18822.0,2.82591252]
[1673591845070,0.09622606,18823.0,18822.0,2.5877324]
[1673591845318,0.09622606,18823.0,18822.0,2.8259245]
[1673591846272,0.09622606,18823.0,18822.0,2.98472654]
[1673591850634,0.09622606,18823.0,18822.0,2.66725213]
[1673591851785,0.09622606,18823.0,18822.0,2.64765934]
[1673591854068,0.09622606,18823.0,18822.0,2.17724134]
[1673591854760,0.09622606,18823.0,18822.0,2.49494338]
[1673591857974,0.09428624,18823.0,18822.0,2.49494338]
[1673591858213,0.09428624,18823.0,18822.0,2.17724134]
[1673591858214,0.09136104,18823.0,18822.0,2.17724134]
[1673591859967,0.09136104,18823.0,18822.0,2.42724134]
[1673591861377,0.09136104,18823.0,18822.0,2.74495158]
[1673591861622,0.09136104,18823.0,18822.0,2.42724134]
[1673591862596,0.09135897,18823.0,18822.0,2.42724134]
[1673591864905,0.09135897,18823.0,18822.0,2.75745934]
[1673591865570,0.09135897,18823.0,18822.0,2.75756015]
[1673591865737,0.09135897,18823.0,18822.0,2.42734215]
[1673591866379,0.09135897,18823.0,18822.0,2.42734102]
[1673591866624,0.09135897,18823.0,18822.0,2.0302472]
[1673591866863,0.09135897,18823.0,18822.0,2.3604652]
[1673591867101,0.09125897,18823.0,18822.0,2.3604652]
[1673591867593,0.09125897,18823.0,18822.0,2.0302472]
[1673591867836,0.09125897,18823.0,18822.0,2.42731129]
[1673591868591,0.08255897,18823.0,18822.0,2.75752929]
[1673591869587,0.08255897,18823.0,18822.0,2.3604652]
[1673591869835,0.08255897,18823.0,18822.0,2.75752135]
[1673591870326,0.08255897,18823.0,18822.0,1.76226259]
[1673591870577,0.08255897,18823.0,18822.0,2.33366928]
[1673591871362,0.08255897,18823.0,18822.0,2.7307275]
[1673591871581,0.08255897,18823.0,18822.0,2.730722]
[1673591873079,0.08255897,18823.0,18822.0,2.08366928]
[1673591873349,0.08255897,18823.0,18822.0,2.33366928]
[1673591873828,0.08255897,18823.0,18822.0,2.73074551]
[1673591874080,0.08255897,18823.0,18822.0,2.33366928]
[1673591874327,0.08255897,18823.0,18822.0,2.73075387]
[1673591877009,0.08255897,18823.0,18822.0,2.08366928]
[1673591877525,0.08255897,18823.0,18822.0,2.15060167]
[1673591878042,0.08255897,18823.0,18822.0,1.76621423]
[1673591878281,0.08255897,18823.0,18822.0,2.00454357]
[1673591879259,0.08255897,18823.0,18822.0,1.72379287]
[1673591879746,0.08255897,18823.0,18822.0,2.02379287]
[1673591880132,0.08255897,18823.0,18822.0,1.70602992]
[1673591880385,0.08255897,18823.0,18822.0,1.86493261]
[1673591880631,0.08255897,18823.0,18822.0,2.02379287]
[1673591881520,0.08255897,18823.0,18822.0,2.02406696]
[1673591883036,0.08256172,18823.0,18822.0,2.02406696]
[1673591883742,0.08256172,18823.0,18822.0,1.86489346]
[1673591884852,0.08256172,18823.0,18822.0,1.70602992]
[1673591884969,0.08256172,18823.0,18822.0,1.70630401]
[1673591885446,0.08256172,18823.0,18822.0,2.02406696]
[1673591885953,0.08256172,18823.0,18822.0,1.86512852]
[1673591886491,0.08256172,18823.0,18822.0,2.02406696]
[1673591887204,0.08256172,18823.0,18822.0,1.86512592]
[1673591887429,0.08256172,18823.0,18822.0,1.70630401]
[1673591887909,0.08256172,18823.0,18822.0,1.86511175]
[1673591888163,0.08256172,18823.0,18822.0,2.02406696]
[1673591889353,0.08256172,18823.0,18822.0,2.16386696]
[1673591890320,0.08256172,18823.0,18822.0,2.32268801]
[1673591890542,0.08256172,18823.0,18822.0,2.79391908]
[1673591890791,0.08256172,18823.0,18822.0,2.47628057]
[1673591891020,0.08256172,18823.0,18822.0,2.7938452]
[1673591892627,0.08256172,18823.0,18822.0,3.0438452]
[1673591893361,0.08256172,18823.0,18822.0,2.7938452]
[1673591895036,0.08256172,18823.0,18822.0,2.39669481]
[1673591895503,0.08256172,18823.0,18822.0,2.63495326]
[1673591895707,0.08256172,18823.0,18822.0,2.39669481]
[1673591896402,0.08256172,18823.0,18822.0,2.63496368]
[1673591896651,0.08256172,18823.0,18822.0,2.22243851]
[1673591896889,0.08256172,18823.0,18822.0,2.86886721]
[1673591897825,0.08256172,18823.0,18822.0,2.47171682]
[1673591898049,0.08256172,18823.0,18822.0,2.86875952]
[1673591899542,0.08256172,18823.0,18822.0,2.56875952]
[1673591899755,0.08256172,18823.0,18822.0,2.48908608]
[1673591900197,0.08256172,18823.0,18822.0,2.72734395]
[1673591900696,0.08256172,18823.0,18822.0,2.88612878]
[1673591901148,0.08256172,18823.0,18822.0,3.18612878]
[1673591901853,0.08256172,18823.0,18822.0,2.85591078]
[1673591902041,0.08256172,18823.0,18822.0,3.18612878]
[1673591903371,0.08255932,18823.0,18822.0,3.18612878]
[1673591903587,0.08255932,18823.0,18822.0,2.85591078]
[1673591904073,0.08255932,18823.0,18822.0,3.18612878]
[1673591905730,0.08255932,18823.0,18822.0,2.78908608]
[1673591905968,0.08255932,18823.0,18822.0,2.45886808]
[1673591906495,0.08255932,18823.0,18822.0,2.69713584]
[1673591906741,0.08255932,18823.0,18822.0,2.69713219]
[1673591907035,0.08255932,18823.0,18822.0,2.78908608]
[1673591907541,0.08255932,18823.0,18822.0,2.85591078]
[1673591907780,0.08255932,18823.0,18822.0,3.18612878]
[1673591909068,0.08255932,18823.0,18822.0,3.18501255]
[1673591910990,0.08255932,18823.0,18822.0,2.8673692]
[1673591911969,0.08255932,18823.0,18822.0,2.5371512]
[1673591912192,0.08255932,18823.0,18822.0,2.8673692]
[1673591915763,0.08255932,18823.0,18822.0,2.5371512]
[1673591916944,0.08255932,18823.0,18822.0,2.8673692]
[1673591918363,0.08255932,18823.0,18822.0,2.8673504]
[1673591918608,0.08255932,18823.0,18822.0,2.4703265]
[1673591919747,0.08255932,18823.0,18822.0,2.86735021]
[1673591919983,0.08255932,18823.0,18822.0,2.4703265]
[1673591920216,0.08255932,18823.0,18822.0,2.8673414]
[1673591920448,0.08255932,18823.0,18822.0,2.4703265]
[1673591920663,0.08255932,18823.0,18822.0,2.53711783]
[1673591920900,0.08255932,18823.0,18822.0,2.1401085]
[1673591921280,0.08255932,18823.0,18822.0,2.53712028]
[1673591921486,0.08255932,18823.0,18822.0,2.86733828]
[1673591923509,0.08255928,18823.0,18822.0,2.86733828]
[1673591924155,0.08255928,18823.0,18822.0,2.4703265]
[1673591924572,0.08255928,18823.0,18822.0,2.1401085]
[1673591925492,0.08255928,18823.0,18822.0,2.4703265]
[1673591927710,0.08255928,18823.0,18822.0,2.57436631]
[1673591928846,0.08255928,18823.0,18822.0,1.9280483]
[1673591929082,0.63768116,18830.0,18823.0,0.330218]
[1673591929083,0.41002775,18829.0,18823.0,0.330218]
[1673591929317,0.01286731,18829.0,18828.0,1.03454277]
[1673591929549,0.01286731,18829.0,18828.0,1.66476077]
[1673591929780,0.01286731,18829.0,18828.0,1.50601189]
[1673591930282,0.01286731,18829.0,18828.0,1.81814979]
[1673591930785,0.08686731,18829.0,18828.0,2.15836779]
[1673591931038,0.08686731,18829.0,18828.0,2.31711667]
[1673591931238,0.08686731,18829.0,18828.0,2.15836779]
[1673591931723,0.08686731,18829.0,18828.0,1.82814979]
[1673591931969,0.01286731,18829.0,18828.0,1.81814979]
[1673591932197,0.05886731,18829.0,18828.0,2.15136779]
[1673591932716,0.05886731,18829.0,18828.0,1.82142379]
[1673591933437,0.05886731,18829.0,18828.0,2.15164179]
[1673591934894,0.05886731,18829.0,18828.0,1.82114979]
[1673591935614,0.05886731,18829.0,18828.0,2.15136779]
[1673591936079,0.05886731,18829.0,18828.0,1.82114979]
[1673591936317,0.05886731,18829.0,18828.0,2.15136779]
[1673591937062,0.05886731,18829.0,18828.0,1.82114979]
[1673591937527,0.05886731,18829.0,18828.0,2.15136779]
[1673591938035,0.05886731,18829.0,18828.0,1.82114979]
[1673591938759,0.05886731,18829.0,18828.0,2.15136779]
[1673591939721,0.05886731,18829.0,18828.0,1.82114979]
[1673591939979,0.05886731,18829.0,18828.0,2.15136779]
[1673591943781,0.06016986,18829.0,18828.0,2.15136779]
[1673591944255,0.06016986,18829.0,18828.0,1.82114979]
[1673591944490,0.06016986,18829.0,18828.0,2.15136779]
[1673591944957,0.06016986,18829.0,18828.0,2.15166779]
[1673591952452,0.06010002,18829.0,18828.0,2.15166779]
[1673591954909,0.06010002,18829.0,18828.0,2.02458797]
[1673591955150,0.06010002,18829.0,18828.0,2.18333685]
[1673591955400,0.06010002,18829.0,18828.0,2.42146017]
[1673591955648,0.06010002,18829.0,18828.0,2.58020905]
[1673591955908,0.06010002,18829.0,18828.0,2.62564638]
[1673591956133,0.06010002,18829.0,18828.0,2.57257633]
[1673591956619,0.01410002,18829.0,18828.0,2.56957633]
[1673591956897,0.01410002,18829.0,18828.0,2.56873547]
[1673591957161,0.01910002,18829.0,18828.0,2.50536226]
[1673591957422,0.01910002,18829.0,18828.0,3.11958282]
[1673591957673,0.01910002,18829.0,18828.0,2.13108618]
[1673591957938,0.01910002,18829.0,18828.0,2.13110762]
[1673591959735,0.01910002,18829.0,18828.0,1.97291739]
[1673591960450,0.01910002,18829.0,18828.0,2.13112513]
[1673591961188,0.01910002,18829.0,18828.0,2.34719347]
[1673591961438,0.01910002,18829.0,18828.0,2.50539007]
[1673591961676,0.01910002,18829.0,18828.0,2.66469123]
[1673591961918,0.01910002,18829.0,18828.0,2.82432521]
[1673591962649,0.01910002,18829.0,18828.0,3.67042521]
[1673591962896,0.01910002,18829.0,18828.0,3.72349526]
[1673591963886,0.01910002,18829.0,18828.0,3.72250799]
[1673591964117,0.01909608,18829.0,18828.0,3.72250799]
[1673591964362,0.01909608,18829.0,18828.0,3.4059975]
[1673591964926,0.01909608,18829.0,18828.0,3.9322302]
[1673591965900,0.01909608,18829.0,18828.0,3.535358]
[1673591966114,0.01909608,18829.0,18828.0,3.93109505]
[1673591967897,0.01909608,18829.0,18828.0,3.535358]
[1673591968644,0.01909608,18829.0,18828.0,3.800898]
[1673591971638,0.02028078,18830.0,18828.0,3.800898]
[1673591971881,0.02028078,18830.0,18829.0,1.99808637]
[1673591972388,0.02028078,18830.0,18829.0,2.05115642]
[1673591972891,0.02128078,18830.0,18829.0,2.08015642]
[1673591975403,0.02128078,18830.0,18829.0,2.02911207]
[1673591975835,0.02128078,18830.0,18829.0,1.65483599]
[1673591976356,0.02128078,18830.0,18829.0,2.02911207]
[1673591976611,0.02128078,18830.0,18829.0,2.02902511]
[1673591976855,0.02128078,18830.0,18829.0,1.65474903]
[1673591977361,0.02128078,18830.0,18829.0,2.71627725]
[1673591977602,0.02128078,18830.0,18829.0,2.02902511]
[1673591978081,0.02128078,18830.0,18829.0,2.64799366]
[1673591978372,0.02128078,18830.0,18829.0,2.96441118]
[1673591978619,0.02128078,18830.0,18829.0,2.34544263]
[1673591979137,0.02128078,18830.0,18829.0,2.34541981]
[1673591979667,0.02128078,18830.0,18829.0,2.23556206]
[1673591979868,0.02128078,18830.0,18829.0,2.02902511]
[1673591980624,0.02128078,18830.0,18829.0,1.76349511]
[1673591981357,0.02128078,18830.0,18829.0,1.38921903]
[1673591982352,0.02128078,18830.0,18829.0,2.36525893]
[1673591982602,0.02128078,18830.0,18829.0,2.20686354]
[1673591983606,0.02128078,18830.0,18829.0,2.1904385]
[1673591983856,0.02128078,18830.0,18829.0,2.50686354]
[1673591984348,0.02258161,18830.0,18829.0,2.50686354]
[1673591984597,0.02258161,18830.0,18829.0,2.34865757]
[1673591984854,0.02258161,18830.0,18829.0,1.72813393]
[1673591985095,0.02258161,18830.0,18829.0,1.14147276]
[1673591985868,0.02258161,18830.0,18829.0,1.46386701]
[1673591986380,0.02258161,18830.0,18829.0,2.05052818]
[1673591987598,0.02258161,18830.0,18829.0,1.72041818]
[1673591989045,0.02258161,18830.0,18829.0,1.95774073]
[1673591989573,0.02258161,18830.0,18829.0,2.28785073]
[1673591990085,0.02258161,18830.0,18829.0,2.12963166]
[1673591990340,0.02258161,18830.0,18829.0,2.4460567]
[1673591990809,0.02258161,18830.0,18829.0,2.12963166]
[1673591991055,0.02258161,18830.0,18829.0,2.4460567]
[1673591991309,0.02258161,18830.0,18829.0,2.1159467]
[1673591991580,0.02258161,18830.0,18829.0,1.95790056]
[1673591992335,0.02258161,18830.0,18829.0,2.4460567]
[1673591992605,0.02258161,18830.0,18829.0,2.12963166]
[1673591993059,0.02258161,18830.0,18829.0,2.4460567]
[1673591994272,0.02258161,18830.0,18829.0,2.1159467]
[1673591994803,0.02258161,18830.0,18829.0,2.4460567]
[1673591995523,0.02258161,18830.0,18829.0,2.1159467]
[1673591995801,0.02258161,18830.0,18829.0,1.79952166]
[1673591996048,0.02258161,18830.0,18829.0,1.95795817]
[1673591996808,0.02258161,18830.0,18829.0,2.12963166]
[1673591997313,0.02258161,18830.0,18829.0,2.28805447]
[1673592000006,0.02258161,18830.0,18829.0,2.12963166]
[1673592000243,0.02258161,18830.0,18829.0,2.28806799]
[1673592000713,0.02258161,18830.0,18829.0,2.2792079]
[1673592000948,0.02258161,18830.0,18829.0,2.43719661]
[1673592001198,0.02258161,18830.0,18829.0,2.27921656]
[1673592001457,0.02258161,18830.0,18829.0,2.43719661]
[1673592001702,0.02258161,18830.0,18829.0,2.43574361]
[1673592003067,0.02258161,18830.0,18829.0,2.11931857]
[1673592003313,0.02258161,18830.0,18829.0,2.43574361]
[1673592004852,0.02257692,18830.0,18829.0,2.43574361]
[1673592007299,0.02257692,18830.0,18829.0,2.11931857]
[1673592007538,0.02257692,18830.0,18829.0,2.10563361]
[1673592007779,0.02257692,18830.0,18829.0,1.78920857]
[1673592008291,0.02257692,18830.0,18829.0,2.43574361]
[1673592009530,0.02257692,18830.0,18829.0,2.19842106]
[1673592009771,0.02257692,18830.0,18829.0,2.43611214]
[1673592012113,0.02257692,18830.0,18829.0,2.10600214]